[Event "Live Chess"]
[Site "Chess.com"]
[Date "2023.05.21"]
[Round "-"]
[White "ChessTWSS"]
[Black "domrobson"]
[Result "1-0"]
[WhiteElo "1604"]
[BlackElo "1712"]
[TimeControl "300"]
[EndTime "2:17:49 PDT"]
[Termination "ChessTWSS won by resignation"]

1. d4 {[%clk 0:04:55.5]} 1... Nf6 {[%clk 0:04:55.1]} 2. Bf4 {[%clk 0:04:48.4]}
2... d5 {[%clk 0:04:44.7]} 3. e3 {[%clk 0:04:43.8]} 3... c5 {[%clk 0:04:44]} 4.
c3 {[%clk 0:04:39.8]} 4... e6 {[%clk 0:04:41.7]} 5. Nf3 {[%clk 0:04:36]} 5...
Bd6 {[%clk 0:04:35.5]} 6. Nbd2 {[%clk 0:04:25.8]} 6... Nc6 {[%clk 0:04:32.7]} 7.
Bd3 {[%clk 0:04:17.1]} 7... Qe7 {[%clk 0:04:27.9]} 8. Bg3 {[%clk 0:04:11.7]}
8... e5 {[%clk 0:04:26.6]} 9. Nxe5 {[%clk 0:03:57.2]} 9... Nxe5 {[%clk
0:04:24.7]} 10. Bxe5 {[%clk 0:03:49.1]} 10... Bxe5 {[%clk 0:04:21.5]} 11. dxe5
{[%clk 0:03:46]} 11... Qxe5 {[%clk 0:04:20.5]} 12. Bb5+ {[%clk 0:03:36.7]} 12...
Bd7 {[%clk 0:04:18.3]} 13. Bxd7+ {[%clk 0:03:32.5]} 13... Nxd7 {[%clk 0:04:17]}
14. Qb3 {[%clk 0:03:25.8]} 14... Nb6 {[%clk 0:04:12.2]} 15. Qb5+ {[%clk
0:03:18.6]} 15... Ke7 {[%clk 0:04:09.6]} 16. Qxc5+ {[%clk 0:03:13.9]} 1-0

[Event "Live Chess"]
[Site "Chess.com"]
[Date "2023.05.21"]
[Round "-"]
[White "Leonid_Starozhilov"]
[Black "FailsGambits"]
[Result "1-0"]
[WhiteElo "2632"]
[BlackElo "1339"]
[TimeControl "300"]
[EndTime "2:17:51 PDT"]
[Termination "Leonid_Starozhilov won by resignation"]

1. e4 {[%clk 0:04:58.6]} 1... e5 {[%clk 0:04:58.7]} 2. Nf3 {[%clk 0:04:58.1]}
2... Nc6 {[%clk 0:04:58.2]} 3. d4 {[%clk 0:04:58]} 3... exd4 {[%clk 0:04:57.3]}
4. Bc4 {[%clk 0:04:57.3]} 4... Be7 {[%clk 0:04:53.9]} 5. O-O {[%clk 0:04:56]}
5... Nf6 {[%clk 0:04:52.5]} 6. c3 {[%clk 0:04:55.3]} 6... O-O {[%clk 0:04:49.7]}
7. e5 {[%clk 0:04:54.1]} 7... Ne8 {[%clk 0:04:47.6]} 8. cxd4 {[%clk 0:04:53.3]}
8... d5 {[%clk 0:04:45]} 9. Bd3 {[%clk 0:04:51.4]} 9... f6 {[%clk 0:04:41.2]}
10. Nc3 {[%clk 0:04:48]} 10... fxe5 {[%clk 0:04:33.9]} 11. Nxe5 {[%clk
0:04:46.5]} 11... Nxe5 {[%clk 0:04:32.3]} 12. dxe5 {[%clk 0:04:45.6]} 12... Bb4
{[%clk 0:04:25.2]} 13. Nxd5 {[%clk 0:04:43.1]} 1-0

[Event "Live Chess"]
[Site "Chess.com"]
[Date "2023.05.21"]
[Round "-"]
[White "howitzer14"]
[Black "TheSmoulderingMaster"]
[Result "1-0"]
[WhiteElo "2890"]
[BlackElo "1698"]
[TimeControl "300"]
[EndTime "2:17:54 PDT"]
[Termination "howitzer14 won by resignation"]

1. a3 {[%clk 0:04:56.5]} 1... d5 {[%clk 0:04:58.7]} 2. Nf3 {[%clk 0:04:54.6]}
2... Nc6 {[%clk 0:04:56.6]} 3. d4 {[%clk 0:04:52.8]} 3... Bg4 {[%clk 0:04:53.8]}
4. Nbd2 {[%clk 0:04:47.8]} 4... Nf6 {[%clk 0:04:47.9]} 5. h3 {[%clk 0:04:37.2]}
5... Bh5 {[%clk 0:04:46.5]} 6. e3 {[%clk 0:04:36.4]} 6... e6 {[%clk 0:04:44.3]}
7. c4 {[%clk 0:04:35.7]} 7... Be7 {[%clk 0:04:39.4]} 8. b4 {[%clk 0:04:35.1]}
8... a6 {[%clk 0:04:36.5]} 9. Bb2 {[%clk 0:04:33.8]} 9... O-O {[%clk 0:04:33.1]}
10. Be2 {[%clk 0:04:33.2]} 10... dxc4 {[%clk 0:04:27.2]} 11. Nxc4 {[%clk
0:04:31.2]} 11... Nd5 {[%clk 0:04:27.1]} 12. O-O {[%clk 0:04:29.3]} 12... Bf6
{[%clk 0:04:21.9]} 13. Rc1 {[%clk 0:04:27.7]} 13... Nce7 {[%clk 0:04:15]} 14.
Qd2 {[%clk 0:04:21.9]} 14... Nc6 {[%clk 0:04:01.5]} 15. Rfd1 {[%clk 0:04:20.1]}
15... Be7 {[%clk 0:03:56.9]} 16. Qc2 {[%clk 0:04:07.2]} 16... Bg6 {[%clk
0:03:52.7]} 17. Qb3 {[%clk 0:04:06.4]} 17... Nf6 {[%clk 0:03:46.6]} 18. Bc3
{[%clk 0:04:02.3]} 18... Ne4 {[%clk 0:03:44.2]} 19. Be1 {[%clk 0:04:01.7]} 19...
Nf6 {[%clk 0:03:38.7]} 20. a4 {[%clk 0:04:00.8]} 20... Nd5 {[%clk 0:03:36.4]}
21. b5 {[%clk 0:03:59.6]} 21... axb5 {[%clk 0:03:35.1]} 22. axb5 {[%clk
0:03:59.5]} 22... Nb8 {[%clk 0:03:25]} 23. Nfe5 {[%clk 0:03:58.8]} 23... Nd7
{[%clk 0:03:14.1]} 24. Nxg6 {[%clk 0:03:56]} 24... fxg6 {[%clk 0:03:12]} 25. Na5
{[%clk 0:03:55.6]} 25... Bh4 {[%clk 0:03:02.8]} 26. Nxb7 {[%clk 0:03:49.2]}
26... Qf6 {[%clk 0:02:58.7]} 27. Bf3 {[%clk 0:03:48.7]} 27... N7b6 {[%clk
0:02:39]} 28. Nc5 {[%clk 0:03:45.5]} 28... Qg5 {[%clk 0:02:23.9]} 29. Nxe6
{[%clk 0:03:41.4]} 29... Qf6 {[%clk 0:02:11.5]} 30. Nxf8 {[%clk 0:03:37.2]}
30... Rxf8 {[%clk 0:02:11.4]} 31. Bxd5+ {[%clk 0:03:36.4]} 31... Kh8 {[%clk
0:02:10]} 32. Bf3 {[%clk 0:03:34.6]} 32... Qg5 {[%clk 0:02:05.8]} 33. Rc5 {[%clk
0:03:29.1]} 33... Qf6 {[%clk 0:01:59.1]} 34. Rxc7 {[%clk 0:03:26.7]} 34... Qf5
{[%clk 0:01:49]} 35. Qc2 {[%clk 0:03:20]} 35... Qxb5 {[%clk 0:01:45.1]} 36. d5
{[%clk 0:03:13.7]} 36... Rd8 {[%clk 0:01:31.9]} 37. d6 {[%clk 0:02:57.7]} 37...
Nd7 {[%clk 0:01:23.4]} 38. Bc6 {[%clk 0:02:55.4]} 1-0

[Event "Live Chess"]
[Site "Chess.com"]
[Date "2023.05.21"]
[Round "-"]
[White "jagbama"]
[Black "OceanFloater"]
[Result "1-0"]
[WhiteElo "1163"]
[BlackElo "1021"]
[TimeControl "300"]
[EndTime "2:17:58 PDT"]
[Termination "jagbama won by resignation"]

1. e4 {[%clk 0:04:57.1]} 1... c6 {[%clk 0:04:58]} 2. Nf3 {[%clk 0:04:55.4]} 2...
d5 {[%clk 0:04:55.7]} 3. e5 {[%clk 0:04:49.1]} 3... Bf5 {[%clk 0:04:52.2]} 4. d4
{[%clk 0:04:47.2]} 4... e6 {[%clk 0:04:49.4]} 5. Be2 {[%clk 0:04:33.1]} 5... c5
{[%clk 0:04:47.5]} 6. c3 {[%clk 0:04:27.3]} 6... c4 {[%clk 0:04:46.4]} 7. O-O
{[%clk 0:04:24.1]} 7... Nc6 {[%clk 0:04:44.6]} 8. b4 {[%clk 0:04:10.9]} 8... b5
{[%clk 0:04:42.8]} 9. a4 {[%clk 0:04:08.3]} 9... a6 {[%clk 0:04:40.8]} 10. axb5
{[%clk 0:04:06.2]} 10... axb5 {[%clk 0:04:39.7]} 11. Rxa8 {[%clk 0:04:04.4]}
11... Qxa8 {[%clk 0:04:38.4]} 12. Na3 {[%clk 0:04:02.2]} 12... Qa6 {[%clk
0:04:26.1]} 13. Ng5 {[%clk 0:03:53.6]} 13... Be7 {[%clk 0:04:22.8]} 14. Qd2
{[%clk 0:03:36.8]} 14... f6 {[%clk 0:04:16.3]} 15. exf6 {[%clk 0:03:31]} 15...
Bxf6 {[%clk 0:04:14.5]} 16. Nf3 {[%clk 0:03:20]} 16... Nh6 {[%clk 0:04:05.9]}
17. Re1 {[%clk 0:03:16.6]} 17... O-O {[%clk 0:04:03.2]} 18. Nc2 {[%clk
0:02:43.6]} 18... Ng4 {[%clk 0:03:45.1]} 19. Ne3 {[%clk 0:02:36.5]} 19... Nxe3
{[%clk 0:03:43.4]} 20. Qxe3 {[%clk 0:02:32.2]} 20... Qc8 {[%clk 0:03:25.8]} 21.
Ne5 {[%clk 0:02:26.7]} 21... Nxe5 {[%clk 0:03:24]} 22. dxe5 {[%clk 0:02:25.6]}
22... Be7 {[%clk 0:03:18.2]} 23. Qg3 {[%clk 0:02:12.3]} 23... Bg6 {[%clk
0:03:09.5]} 24. h4 {[%clk 0:02:03.9]} 24... Qc7 {[%clk 0:03:01.3]} 25. h5 {[%clk
0:02:01.6]} 25... Bd3 {[%clk 0:02:56.4]} 26. Bh6 {[%clk 0:01:48.8]} 26... Rf7
{[%clk 0:02:54.5]} 27. Bg4 {[%clk 0:01:36.2]} 27... Bf5 {[%clk 0:02:48.3]} 28.
Bxf5 {[%clk 0:01:29]} 28... exf5 {[%clk 0:02:46.9]} 29. e6 {[%clk 0:01:23.3]}
29... Qxg3 {[%clk 0:02:43.6]} 30. exf7+ {[%clk 0:01:22.1]} 30... Kxf7 {[%clk
0:02:42]} 31. fxg3 {[%clk 0:01:20.4]} 31... gxh6 {[%clk 0:02:40.8]} 32. Kf2
{[%clk 0:01:17]} 32... Kf6 {[%clk 0:02:39.3]} 33. Kf3 {[%clk 0:01:15.7]} 33...
Kg5 {[%clk 0:02:35.6]} 34. Rxe7 {[%clk 0:01:13.9]} 34... Kxh5 {[%clk 0:02:34.1]}
35. Rxh7 {[%clk 0:01:10.8]} 35... Kg5 {[%clk 0:02:32.8]} 36. Rd7 {[%clk
0:01:04.8]} 36... f4 {[%clk 0:02:26.7]} 37. Rxd5+ {[%clk 0:01:01.3]} 37... Kf6
{[%clk 0:02:23.7]} 38. gxf4 {[%clk 0:01:00.3]} 1-0

[Event "Live Chess"]
[Site "Chess.com"]
[Date "2023.05.21"]
[Round "-"]
[White "Doge_Dandolo"]
[Black "mliszewski"]
[Result "0-1"]
[WhiteElo "1869"]
[BlackElo "1837"]
[TimeControl "300"]
[EndTime "2:18:08 PDT"]
[Termination "mliszewski won by resignation"]

1. Nf3 {[%clk 0:04:53.7]} 1... b6 {[%clk 0:04:58.9]} 2. g3 {[%clk 0:04:52.1]}
2... Bb7 {[%clk 0:04:58.7]} 3. Bg2 {[%clk 0:04:51.3]} 3... e6 {[%clk 0:04:57.9]}
4. c4 {[%clk 0:04:49.3]} 4... Nf6 {[%clk 0:04:57.1]} 5. O-O {[%clk 0:04:47]}
5... c5 {[%clk 0:04:56.2]} 6. Nc3 {[%clk 0:04:43.9]} 6... Be7 {[%clk 0:04:55.7]}
7. d4 {[%clk 0:04:32.2]} 7... O-O {[%clk 0:04:49.6]} 8. Re1 {[%clk 0:04:10.3]}
8... d5 {[%clk 0:04:41.3]} 9. cxd5 {[%clk 0:04:07.5]} 9... exd5 {[%clk
0:04:40.3]} 10. dxc5 {[%clk 0:04:06]} 10... bxc5 {[%clk 0:04:39.4]} 11. Bg5
{[%clk 0:04:04.5]} 11... d4 {[%clk 0:04:37.9]} 12. Bxf6 {[%clk 0:04:01.2]} 12...
Bxf6 {[%clk 0:04:36.2]} 13. Ne4 {[%clk 0:03:59.8]} 13... Bxe4 {[%clk 0:04:34.1]}
0-1

[Event "Live Chess"]
[Site "Chess.com"]
[Date "2023.05.21"]
[Round "-"]
[White "wadsy27"]
[Black "LanceMaster23"]
[Result "1-0"]
[WhiteElo "2569"]
[BlackElo "1946"]
[TimeControl "300"]
[EndTime "2:18:16 PDT"]
[Termination "wadsy27 won on time"]

1. c4 {[%clk 0:04:56.9]} 1... Nf6 {[%clk 0:04:58.8]} 2. g3 {[%clk 0:04:56.1]}
2... c6 {[%clk 0:04:57.8]} 3. Bg2 {[%clk 0:04:55.5]} 3... d5 {[%clk 0:04:57.4]}
4. Nf3 {[%clk 0:04:55.2]} 4... Bf5 {[%clk 0:04:56.2]} 5. Qb3 {[%clk 0:04:53.7]}
5... Qb6 {[%clk 0:04:54.8]} 6. d3 {[%clk 0:04:52.8]} 6... e6 {[%clk 0:04:53.1]}
7. Be3 {[%clk 0:04:51.8]} 7... Qc7 {[%clk 0:04:49.3]} 8. cxd5 {[%clk 0:04:45.3]}
8... exd5 {[%clk 0:04:48]} 9. O-O {[%clk 0:04:42.2]} 9... Be7 {[%clk 0:04:46.9]}
10. Nc3 {[%clk 0:04:33.3]} 10... O-O {[%clk 0:04:45.6]} 11. Rac1 {[%clk
0:04:30.4]} 11... Na6 {[%clk 0:04:33.3]} 12. Nd4 {[%clk 0:04:21.6]} 12... Bg6
{[%clk 0:04:30]} 13. Bf4 {[%clk 0:03:45.5]} 13... Qd7 {[%clk 0:04:20.4]} 14. Qd1
{[%clk 0:03:41.4]} 14... Rfe8 {[%clk 0:04:13.9]} 15. Nb3 {[%clk 0:03:28.6]}
15... Bd6 {[%clk 0:04:05.6]} 16. Bxd6 {[%clk 0:03:24.2]} 16... Qxd6 {[%clk
0:04:04.7]} 17. a3 {[%clk 0:03:17.5]} 17... Re7 {[%clk 0:03:55.4]} 18. Na5
{[%clk 0:02:50.7]} 18... Rae8 {[%clk 0:03:46.1]} 19. b4 {[%clk 0:02:47.7]} 19...
Bh5 {[%clk 0:03:28.2]} 20. Bf3 {[%clk 0:02:42.6]} 20... Bxf3 {[%clk 0:03:16.1]}
21. exf3 {[%clk 0:02:42.5]} 21... b6 {[%clk 0:03:00.9]} 22. Nxc6 {[%clk
0:01:57.7]} 22... Qxc6 {[%clk 0:02:36.5]} 23. b5 {[%clk 0:01:56.7]} 23... Qd6
{[%clk 0:02:28.6]} 24. bxa6 {[%clk 0:01:56.6]} 24... Qxa3 {[%clk 0:02:27.3]} 25.
Nb5 {[%clk 0:01:54.4]} 25... Qxa6 {[%clk 0:02:17.3]} 26. Nc7 {[%clk 0:01:53.3]}
26... Qb7 {[%clk 0:01:50.6]} 27. Nxe8 {[%clk 0:01:50.4]} 27... Rxe8 {[%clk
0:01:50.5]} 28. Re1 {[%clk 0:01:47.4]} 28... Rb8 {[%clk 0:01:43.7]} 29. Qa4
{[%clk 0:01:36.3]} 29... b5 {[%clk 0:01:39.5]} 30. Qb4 {[%clk 0:01:35.3]} 30...
Qb6 {[%clk 0:01:32.2]} 31. Ra1 {[%clk 0:01:22.1]} 31... Rc8 {[%clk 0:01:26.1]}
32. Qa5 {[%clk 0:01:15.7]} 32... Qd4 {[%clk 0:01:24.6]} 33. Qxb5 {[%clk
0:01:10.5]} 33... h6 {[%clk 0:01:10.1]} 34. Ra2 {[%clk 0:01:02]} 34... Rc3
{[%clk 0:01:08.9]} 35. Qb8+ {[%clk 0:00:47.9]} 35... Kh7 {[%clk 0:01:07.3]} 36.
Qxa7 {[%clk 0:00:47.3]} 36... Qxd3 {[%clk 0:00:57]} 37. Qxf7 {[%clk 0:00:44.2]}
37... Qxf3 {[%clk 0:00:56.2]} 38. Ra7 {[%clk 0:00:38.4]} 38... Nh5 {[%clk
0:00:45.4]} 39. Qxf3 {[%clk 0:00:27.9]} 39... Rxf3 {[%clk 0:00:45.3]} 40. Ree7
{[%clk 0:00:26.5]} 40... Rf5 {[%clk 0:00:22]} 41. Rad7 {[%clk 0:00:24]} 41...
Rg5 {[%clk 0:00:19.2]} 42. Re6 {[%clk 0:00:21.2]} 42... Nf4 {[%clk 0:00:14.7]}
43. Red6 {[%clk 0:00:20.2]} 43... h5 {[%clk 0:00:09.9]} 44. h4 {[%clk 0:00:19]}
44... Rg4 {[%clk 0:00:08.1]} 45. Kh2 {[%clk 0:00:17.7]} 45... Ng6 {[%clk
0:00:07.5]} 46. Rxd5 {[%clk 0:00:15.8]} 46... Nxh4 {[%clk 0:00:05.1]} 47. Rxh5+
{[%clk 0:00:14.2]} 47... Kg6 {[%clk 0:00:03.3]} 48. Rxh4 {[%clk 0:00:13.8]}
48... Rg5 {[%clk 0:00:02.4]} 49. Rd6+ {[%clk 0:00:12.2]} 49... Kf7 {[%clk
0:00:02.3]} 50. Rf4+ {[%clk 0:00:11.7]} 50... Kg8 {[%clk 0:00:01.6]} 51. Rd8+
{[%clk 0:00:10.9]} 51... Kh7 {[%clk 0:00:01.5]} 52. Rd7 {[%clk 0:00:10.2]} 52...
Kg6 {[%clk 0:00:01.4]} 53. Rff7 {[%clk 0:00:09.2]} 53... Kh7 {[%clk 0:00:01.2]}
54. Rxg7+ {[%clk 0:00:08.4]} 54... Kh6 {[%clk 0:00:01.1]} 55. Rh7+ {[%clk
0:00:07.2]} 55... Kg6 {[%clk 0:00:00.2]} 56. Rdg7+ {[%clk 0:00:07.1]} 56... Kf5
{[%clk 0:00:00.1]} 57. Rg6 {[%clk 0:00:06.8]} 1-0

[Event "Live Chess"]
[Site "Chess.com"]
[Date "2023.05.21"]
[Round "-"]
[White "Crowded_House"]
[Black "hunany_3"]
[Result "0-1"]
[WhiteElo "1655"]
[BlackElo "1733"]
[TimeControl "300"]
[EndTime "2:18:24 PDT"]
[Termination "hunany_3 won by resignation"]

1. d4 {[%clk 0:04:57.9]} 1... Nf6 {[%clk 0:04:58.9]} 2. Bg5 {[%clk 0:04:57.2]}
2... g6 {[%clk 0:04:56.6]} 3. e3 {[%clk 0:04:56.2]} 3... Bg7 {[%clk 0:04:56.1]}
4. c3 {[%clk 0:04:55.9]} 4... d6 {[%clk 0:04:55.6]} 5. Nf3 {[%clk 0:04:54.7]}
5... Nbd7 {[%clk 0:04:55.1]} 6. Bd3 {[%clk 0:04:54.1]} 6... O-O {[%clk
0:04:54.3]} 7. Nbd2 {[%clk 0:04:53.6]} 7... h6 {[%clk 0:04:53.5]} 8. Bh4 {[%clk
0:04:51.7]} 8... e5 {[%clk 0:04:45]} 9. dxe5 {[%clk 0:04:49.8]} 9... dxe5 {[%clk
0:04:44.9]} 10. Ne4 {[%clk 0:04:45.2]} 10... Qe8 {[%clk 0:04:25.1]} 11. Nxf6+
{[%clk 0:04:36.7]} 11... Nxf6 {[%clk 0:04:25]} 12. Bxf6 {[%clk 0:04:15.5]} 12...
Bxf6 {[%clk 0:04:24.9]} 13. Bc2 {[%clk 0:04:11.3]} 13... Bg4 {[%clk 0:04:21.4]}
14. h3 {[%clk 0:04:07.9]} 14... Rd8 {[%clk 0:04:15.6]} 15. Qc1 {[%clk 0:03:54]}
15... Bd7 {[%clk 0:04:08.7]} 16. O-O {[%clk 0:03:48.9]} 16... Bg7 {[%clk
0:04:06.2]} 17. Bb3 {[%clk 0:03:43.6]} 17... Bc6 {[%clk 0:04:03.9]} 18. Nh2
{[%clk 0:03:34.4]} 18... h5 {[%clk 0:03:57.1]} 19. Rd1 {[%clk 0:03:33.3]} 19...
Qe7 {[%clk 0:03:52.8]} 20. Qc2 {[%clk 0:03:29.7]} 20... Qg5 {[%clk 0:03:49.1]}
21. f4 {[%clk 0:03:04.2]} 21... exf4 {[%clk 0:03:28.4]} 22. exf4 {[%clk
0:03:02.4]} 22... Qf6 {[%clk 0:03:12.5]} 23. Qf2 {[%clk 0:02:44]} 23... Kh7
{[%clk 0:03:09.3]} 24. Rxd8 {[%clk 0:02:39.7]} 24... Rxd8 {[%clk 0:03:08.1]} 25.
Rd1 {[%clk 0:02:38.5]} 25... Rxd1+ {[%clk 0:03:03.4]} 26. Bxd1 {[%clk
0:02:37.8]} 26... a6 {[%clk 0:03:00.4]} 27. Bf3 {[%clk 0:02:31.7]} 27... Bxf3
{[%clk 0:02:55.9]} 28. Qxf3 {[%clk 0:02:28.8]} 28... c6 {[%clk 0:02:53.8]} 29.
Nf1 {[%clk 0:02:22.6]} 29... Bh6 {[%clk 0:02:52.7]} 30. g3 {[%clk 0:02:20.7]}
30... g5 {[%clk 0:02:49.5]} 31. Kg2 {[%clk 0:02:11.2]} 31... gxf4 {[%clk
0:02:45.3]} 32. gxf4 {[%clk 0:02:07.4]} 32... Qxf4 {[%clk 0:02:45.2]} 33. Qxf4
{[%clk 0:02:05.8]} 33... Bxf4 {[%clk 0:02:44.4]} 34. b3 {[%clk 0:02:04.1]} 34...
Kg6 {[%clk 0:02:42.4]} 35. c4 {[%clk 0:02:03]} 35... Kf5 {[%clk 0:02:40.3]} 36.
Kf3 {[%clk 0:02:02.7]} 36... Ke5 {[%clk 0:02:38.9]} 37. Ke2 {[%clk 0:01:56.4]}
37... Kd4 {[%clk 0:02:36.9]} 38. Nd2 {[%clk 0:01:50.1]} 38... Kc3 {[%clk
0:02:28.2]} 39. Ne4+ {[%clk 0:01:45.6]} 39... Kb2 {[%clk 0:02:27.3]} 40. Nc5
{[%clk 0:01:44.7]} 40... b6 {[%clk 0:02:17.1]} 41. Nxa6 {[%clk 0:01:41.8]} 41...
Kxa2 {[%clk 0:02:16.8]} 42. b4 {[%clk 0:01:34.9]} 42... Ka3 {[%clk 0:02:15.8]}
43. b5 {[%clk 0:01:33.9]} 43... cxb5 {[%clk 0:02:11.8]} 44. cxb5 {[%clk
0:01:31.9]} 44... Ka4 {[%clk 0:02:11]} 45. Kf3 {[%clk 0:01:26.2]} 45... Bd6
{[%clk 0:02:08.6]} 46. Ke4 {[%clk 0:01:21]} 46... Kxb5 {[%clk 0:02:07.8]} 47.
Kf5 {[%clk 0:01:20.6]} 47... Kxa6 {[%clk 0:02:06.6]} 48. Kf6 {[%clk 0:01:20.2]}
48... b5 {[%clk 0:02:04.3]} 49. Kxf7 {[%clk 0:01:19.9]} 49... h4 {[%clk
0:02:03.4]} 50. Kg6 {[%clk 0:01:19.6]} 50... Bg3 {[%clk 0:02:02.9]} 51. Kh5
{[%clk 0:01:19.2]} 51... b4 {[%clk 0:02:02.4]} 52. Kg4 {[%clk 0:01:18.9]} 52...
b3 {[%clk 0:02:02]} 0-1

[Event "Live Chess"]
[Site "Chess.com"]
[Date "2023.05.21"]
[Round "-"]
[White "EdenHazard8"]
[Black "Brooms1989"]
[Result "1-0"]
[WhiteElo "1975"]
[BlackElo "1109"]
[TimeControl "300"]
[EndTime "2:18:31 PDT"]
[Termination "EdenHazard8 won by checkmate"]

1. e4 {[%clk 0:04:59.2]} 1... e5 {[%clk 0:04:54]} 2. Nf3 {[%clk 0:04:58.1]} 2...
Nc6 {[%clk 0:04:52.5]} 3. Bc4 {[%clk 0:04:57.1]} 3... Nf6 {[%clk 0:04:51.4]} 4.
Ng5 {[%clk 0:04:55.5]} 4... d5 {[%clk 0:04:50.5]} 5. exd5 {[%clk 0:04:55.4]}
5... Na5 {[%clk 0:04:49.5]} 6. Bb5+ {[%clk 0:04:54.2]} 6... c6 {[%clk
0:04:48.9]} 7. dxc6 {[%clk 0:04:54.1]} 7... bxc6 {[%clk 0:04:48.2]} 8. Bd3
{[%clk 0:04:54]} 8... Nd5 {[%clk 0:04:47.1]} 9. Nf3 {[%clk 0:04:52.5]} 9... Bd6
{[%clk 0:04:39.4]} 10. O-O {[%clk 0:04:50.4]} 10... O-O {[%clk 0:04:38.1]} 11.
Re1 {[%clk 0:04:47.4]} 11... f6 {[%clk 0:04:30.2]} 12. Nc3 {[%clk 0:04:43.9]}
12... Nb7 {[%clk 0:04:18.5]} 13. Ne4 {[%clk 0:04:38.5]} 13... Bg4 {[%clk
0:04:12.7]} 14. c4 {[%clk 0:04:31.3]} 14... Ne7 {[%clk 0:04:04.6]} 15. c5 {[%clk
0:04:24]} 15... Nxc5 {[%clk 0:03:59.9]} 16. Nxc5 {[%clk 0:04:19.8]} 16... Bxc5
{[%clk 0:03:59.8]} 17. Qc2 {[%clk 0:04:18.8]} 17... Bb6 {[%clk 0:03:56.1]} 18.
Qc4+ {[%clk 0:04:16.3]} 18... Kh8 {[%clk 0:03:44.9]} 19. Bxh7 {[%clk 0:04:09]}
19... Bxf3 {[%clk 0:03:36.5]} 20. Qh4 {[%clk 0:04:06.9]} 20... Bxf2+ {[%clk
0:03:19.2]} 21. Kxf2 {[%clk 0:04:02.5]} 21... Qb6+ {[%clk 0:03:15.9]} 22. Re3
{[%clk 0:03:59.1]} 22... Bd5 {[%clk 0:02:36.6]} 23. Bg6+ {[%clk 0:03:57.1]}
23... Kg8 {[%clk 0:02:34.8]} 24. Qh7# {[%clk 0:03:57]} 1-0

[Event "Live Chess"]
[Site "Chess.com"]
[Date "2023.05.21"]
[Round "-"]
[White "Mechhead7"]
[Black "smoggyrabbit"]
[Result "1-0"]
[WhiteElo "1775"]
[BlackElo "1701"]
[TimeControl "300"]
[EndTime "2:19:17 PDT"]
[Termination "Mechhead7 won on time"]

1. e4 {[%clk 0:04:58.9]} 1... e6 {[%clk 0:04:58.8]} 2. d4 {[%clk 0:04:57.8]}
2... d5 {[%clk 0:04:58]} 3. Nc3 {[%clk 0:04:57.1]} 3... Nf6 {[%clk 0:04:56.4]}
4. Bg5 {[%clk 0:04:55.4]} 4... Be7 {[%clk 0:04:53.1]} 5. e5 {[%clk 0:04:54.5]}
5... Nfd7 {[%clk 0:04:52.4]} 6. h4 {[%clk 0:04:53.6]} 6... h6 {[%clk 0:04:51]}
7. Bxe7 {[%clk 0:04:51.7]} 7... Qxe7 {[%clk 0:04:50.9]} 8. Nb5 {[%clk 0:04:49]}
8... Nb6 {[%clk 0:04:47.5]} 9. Nf3 {[%clk 0:04:35.4]} 9... a6 {[%clk 0:04:45.9]}
10. Nc3 {[%clk 0:04:21]} 10... c5 {[%clk 0:04:43.8]} 11. Be2 {[%clk 0:04:11.7]}
11... Nc6 {[%clk 0:04:42.2]} 12. h5 {[%clk 0:04:06.5]} 12... cxd4 {[%clk
0:04:22.9]} 13. Nxd4 {[%clk 0:04:05.3]} 13... Nxe5 {[%clk 0:04:20.2]} 14. f4
{[%clk 0:03:58.7]} 14... Nec4 {[%clk 0:04:14.2]} 15. b3 {[%clk 0:03:46.7]} 15...
Ne3 {[%clk 0:03:58.7]} 16. Qd2 {[%clk 0:03:40.1]} 16... Nxg2+ {[%clk 0:03:52.4]}
17. Kf2 {[%clk 0:03:36.1]} 17... Nxf4 {[%clk 0:03:16.7]} 18. Qxf4 {[%clk
0:03:34.5]} 18... e5 {[%clk 0:03:15.4]} 19. Qg3 {[%clk 0:03:18.1]} 19... exd4
{[%clk 0:02:35.2]} 20. Nd1 {[%clk 0:03:09.8]} 20... Qf6+ {[%clk 0:02:27.4]} 21.
Bf3 {[%clk 0:03:08.6]} 21... d3 {[%clk 0:02:14.3]} 22. Ne3 {[%clk 0:03:04.3]}
22... dxc2 {[%clk 0:02:07.9]} 23. Nxc2 {[%clk 0:03:03.2]} 23... Be6 {[%clk
0:01:54.2]} 24. Rhe1 {[%clk 0:02:41.9]} 24... Rc8 {[%clk 0:01:46]} 25. Re2
{[%clk 0:02:32.5]} 25... Rxc2 {[%clk 0:01:36.5]} 26. Rxc2 {[%clk 0:02:31.3]}
26... Qxa1 {[%clk 0:01:28]} 27. Qb8+ {[%clk 0:02:25.6]} 27... Ke7 {[%clk
0:00:59.5]} 28. Qxh8 {[%clk 0:02:05.9]} 28... Qd4+ {[%clk 0:00:52.7]} 29. Kg2
{[%clk 0:02:01.5]} 29... Qe5 {[%clk 0:00:44.4]} 30. Re2 {[%clk 0:01:35.1]} 30...
Qg5+ {[%clk 0:00:42.3]} 31. Kf2 {[%clk 0:01:32.9]} 31... Qh4+ {[%clk 0:00:40.2]}
32. Kg2 {[%clk 0:01:30.2]} 32... Qh3+ {[%clk 0:00:37.1]} 33. Kf2 {[%clk
0:01:28.3]} 33... Qh2+ {[%clk 0:00:35.1]} 34. Ke3 {[%clk 0:01:23.6]} 34... Qg1+
{[%clk 0:00:26.5]} 35. Kd2 {[%clk 0:01:13.4]} 35... Qg5+ {[%clk 0:00:18.8]} 36.
Kd1 {[%clk 0:01:08.2]} 36... Qg1+ {[%clk 0:00:15.2]} 37. Re1 {[%clk 0:01:07.1]}
37... Qd4+ {[%clk 0:00:14.3]} 38. Ke2 {[%clk 0:01:04.3]} 38... Qb2+ {[%clk
0:00:12.3]} 39. Kf1 {[%clk 0:01:02.9]} 39... Qf6 {[%clk 0:00:10.2]} 40. Re3
{[%clk 0:00:52.4]} 40... Qg5 {[%clk 0:00:06.9]} 41. Ke2 {[%clk 0:00:47.3]} 41...
Qh4 {[%clk 0:00:05.3]} 42. Qxg7 {[%clk 0:00:44.7]} 42... Qh2+ {[%clk 0:00:04.2]}
43. Qg2 {[%clk 0:00:43.2]} 43... Qxg2+ {[%clk 0:00:03.5]} 44. Bxg2 {[%clk
0:00:42.4]} 44... d4 {[%clk 0:00:02.4]} 45. Re4 {[%clk 0:00:40.6]} 45... Nd7
{[%clk 0:00:01.5]} 46. Rxd4 {[%clk 0:00:39.3]} 46... Nf6 {[%clk 0:00:00.8]} 47.
Bxb7 {[%clk 0:00:37.7]} 47... Nxh5 {[%clk 0:00:00.1]} 48. Re4 {[%clk 0:00:35.6]}
1-0

[Event "Live Chess"]
[Site "Chess.com"]
[Date "2023.05.21"]
[Round "-"]
[White "Reggie016"]
[Black "chessfiction"]
[Result "0-1"]
[WhiteElo "1088"]
[BlackElo "2334"]
[TimeControl "300"]
[EndTime "2:19:59 PDT"]
[Termination "chessfiction won by checkmate"]

1. e4 {[%clk 0:04:58.3]} 1... e5 {[%clk 0:04:59.5]} 2. Nc3 {[%clk 0:04:57.3]}
2... Bc5 {[%clk 0:04:59]} 3. f4 {[%clk 0:04:56]} 3... exf4 {[%clk 0:04:57.8]} 4.
Nf3 {[%clk 0:04:55]} 4... g5 {[%clk 0:04:54.2]} 5. d4 {[%clk 0:04:53.1]} 5...
Bb4 {[%clk 0:04:53.6]} 6. h4 {[%clk 0:04:47.8]} 6... g4 {[%clk 0:04:51.9]} 7.
Ne5 {[%clk 0:04:46.6]} 7... h5 {[%clk 0:04:42.4]} 8. Bxf4 {[%clk 0:04:40.6]}
8... Nc6 {[%clk 0:04:39.5]} 9. Bc4 {[%clk 0:04:31.2]} 9... Nxe5 {[%clk 0:04:33]}
10. Bxe5 {[%clk 0:04:27.7]} 10... Rh7 {[%clk 0:04:30]} 11. O-O {[%clk
0:04:17.8]} 11... Qxh4 {[%clk 0:04:27.1]} 12. Nd5 {[%clk 0:03:59.8]} 12... g3
{[%clk 0:04:20.3]} 13. Nxc7+ {[%clk 0:03:46.3]} 13... Kd8 {[%clk 0:04:16.2]} 14.
Qf3 {[%clk 0:03:35.5]} 14... Qh2# {[%clk 0:04:14.1]} 0-1